bitfinex-derivatives/quotes_BTCF0:USTF0_20241210
["timestamp","ask_amount","ask_price","bid_price","bid_amount"]
[1733833396750,0.412043,97530.0,97529.0,0.051303]
[1733833397341,0.41216296,97530.0,97529.0,0.051303]
[1733833398752,0.41216296,97530.0,97529.0,6e-05]
[1733833399562,0.41316296,97530.0,97529.0,0.00106]
[1733833399850,0.051252,97512.0,97511.0,0.00012801]
[1733833400955,0.051252,97512.0,97483.0,0.24477737]
[1733833401250,0.00012,97484.0,97483.0,0.24477737]
[1733833401550,0.00012,97484.0,97483.0,0.29604437]
[1733833401760,0.051387,97484.0,97483.0,0.051267]
[1733833401956,0.051387,97484.0,97483.0,0.05138459]
[1733833402653,0.051387,97484.0,97483.0,0.05438459]
[1733833403451,0.051387,97484.0,97483.0,0.00011759]
[1733833403750,0.051387,97484.0,97483.0,0.00311759]
[1733833404349,0.051387,97484.0,97483.0,0.00911759]
[1733833405854,0.051387,97484.0,97483.0,0.00711759]
[1733833406057,0.051278,97463.0,97462.0,0.30646887]
[1733833406556,0.051279,97461.0,97450.0,0.3608]
[1733833406748,0.051279,97461.0,97454.0,0.051283]
[1733833407347,0.3608,97464.0,97460.0,0.051279]
[1733833407559,0.3608,97464.0,97455.0,9.834e-05]
[1733833407747,0.3608,97464.0,97463.0,6e-05]
[1733833407954,0.051273,97472.0,97468.0,0.051275]
[1733833408152,0.051274,97471.0,97468.0,0.051275]
[1733833408352,0.3608,97474.0,97470.0,0.051274]
[1733833409158,0.051278,97463.0,97462.0,0.002]
[1733833409359,0.412078,97463.0,97462.0,0.002]
[1733833409547,0.412198,97463.0,97462.0,0.002]
[1733833409947,0.412198,97463.0,97455.0,9.834e-05]
[1733833409948,0.05128,97459.0,97455.0,9.834e-05]
[1733833410153,0.05128,97459.0,97455.0,0.05138034]
[1733833410360,0.00012,97456.0,97455.0,0.05138034]
[1733833410558,0.00012,97456.0,97455.0,0.05538034]
[1733833411150,0.00012,97456.0,97455.0,0.05138034]
[1733833411757,0.00012,97456.0,97455.0,0.05338034]
[1733833412456,0.00012,97456.0,97455.0,0.05438034]
[1733833414858,0.10096868,97480.0,97455.0,0.05438034]
[1733833415062,0.051275,97469.0,97468.0,0.051275]
[1733833415552,0.10096868,97480.0,97459.0,0.3608]
[1733833415755,0.051278,97464.0,97462.0,0.051278]
[1733833416953,0.051278,97464.0,97462.0,0.052278]
[1733833417156,0.051278,97464.0,97463.0,0.0451]
[1733833418368,0.051271,97476.0,97463.0,0.0451]
[1733833418660,0.051271,97476.0,97475.0,0.051272]
[1733833418958,0.0466,97487.0,97475.0,0.051272]
[1733833418959,0.051266,97487.0,97485.0,0.051266]
[1733833419365,0.051266,97487.0,97486.0,6e-05]
[1733833421265,0.058266,97487.0,97486.0,0.00106]
[1733833421770,0.06852134,97487.0,97486.0,0.00106]
[1733833422669,0.051281,97457.0,97455.0,0.05138034]
[1733833423060,0.3608,97463.0,97455.0,0.05138034]
[1733833423373,0.00010115,97460.0,97455.0,0.05138034]
[1733833423874,0.00010115,97460.0,97455.0,0.05738034]
[1733833424373,0.051282,97456.0,97455.0,0.05738034]
[1733833424870,0.051282,97456.0,97455.0,0.00609834]
[1733833426168,0.051282,97456.0,97455.0,0.00409834]
[1733833426379,0.051282,97456.0,97455.0,0.00609834]
[1733833427083,0.051282,97456.0,97455.0,0.00109834]
[1733833427287,0.051282,97456.0,97455.0,0.00509834]
[1733833427778,0.051282,97456.0,97455.0,0.00209834]
[1733833428182,0.051282,97456.0,97455.0,0.05338034]
[1733833432485,0.051282,97456.0,97455.0,0.00209834]
[1733833434277,0.051282,97456.0,97455.0,0.24687571]
[1733833434480,0.051282,97456.0,97455.0,0.00209834]
[1733833435189,0.051282,97456.0,97455.0,0.24772595]
[1733833435492,0.051282,97456.0,97455.0,0.00209834]
[1733833437396,0.00010115,97460.0,97459.0,0.05128]
[1733833438894,0.00010115,97460.0,97459.0,0.35835745]
[1733833439090,0.05138115,97460.0,97459.0,0.05128]
[1733833439287,0.05138115,97460.0,97459.0,0.35835745]
[1733833439790,0.05138115,97460.0,97459.0,0.05128]
[1733833440291,0.05138115,97460.0,97459.0,0.35835745]
[1733833440598,0.00110115,97460.0,97455.0,9.834e-05]
[1733833440891,0.051402,97456.0,97455.0,9.834e-05]
[1733833441598,0.051402,97456.0,97455.0,0.24577534]
[1733833443091,0.051402,97456.0,97455.0,9.834e-05]
[1733833443303,0.051402,97456.0,97455.0,0.00109834]
[1733833444496,0.051402,97456.0,97455.0,0.00209834]
[1733833445897,0.051402,97456.0,97455.0,0.24777534]
[1733833446501,0.051402,97456.0,97455.0,0.00209834]
[1733833448499,0.051402,97456.0,97455.0,0.24779742]
[1733833448793,0.051402,97456.0,97455.0,0.18637294]
[1733833448998,0.351402,97456.0,97455.0,3.4e-07]
[1733833449184,0.051286,97448.0,97447.0,0.24569947]
[1733833449385,0.051286,97448.0,97447.0,0.17952601]
[1733833449386,0.412086,97448.0,97447.0,0.17952601]
[1733833449597,0.412086,97448.0,97435.0,0.3070712]
[1733833449598,0.051287,97446.0,97435.0,0.3070712]
[1733833449785,0.412092,97436.0,97435.0,0.3070712]
[1733833449990,0.412212,97436.0,97435.0,0.3070712]
[1733833450189,0.412212,97436.0,97429.0,9.437e-05]
[1733833450190,0.48307329,97436.0,97429.0,9.437e-05]
[1733833450395,0.051295,97430.0,97429.0,9.437e-05]
[1733833450605,0.051415,97430.0,97429.0,9.437e-05]
[1733833451693,0.051415,97430.0,97429.0,0.00409437]
[1733833452096,0.00012,97430.0,97429.0,0.05539037]
[1733833452391,0.00112,97430.0,97429.0,0.06339037]
[1733833452596,0.00112,97430.0,97429.0,0.01209437]
[1733833452597,0.052415,97430.0,97429.0,0.01209437]
[1733833454403,0.052415,97430.0,97429.0,0.06339037]
[1733833458104,0.052415,97430.0,97429.0,0.01209437]
[1733833458998,0.413215,97430.0,97429.0,0.01209437]
[1733833460708,0.4235391,97430.0,97429.0,0.01209437]
[1733833462610,0.4235391,97430.0,97403.0,0.3608]
[1733833462611,0.051309,97404.0,97403.0,0.3608]
[1733833462997,0.05131,97402.0,97401.0,0.096]
[1733833463408,0.05131,97402.0,97400.0,0.1]
[1733833463409,0.051311,97401.0,97400.0,0.1]
[1733833463612,0.051311,97401.0,97400.0,0.10008548]
[1733833463916,0.051431,97401.0,97400.0,0.10008548]
[1733833464212,0.00012,97401.0,97400.0,0.15139648]
[1733833465014,0.12254769,97429.0,97400.0,0.15139648]
[1733833465215,0.12254769,97429.0,97410.0,0.10096868]
[1733833465509,0.051299,97423.0,97422.0,6e-05]
[1733833467010,0.14281823,97423.0,97422.0,6e-05]
[1733833467212,0.142816,97423.0,97422.0,6e-05]
[1733833467811,0.053299,97423.0,97422.0,6e-05]
[1733833468008,0.14581632,97423.0,97422.0,6e-05]
[1733833468207,0.054299,97423.0,97422.0,6e-05]
[1733833468604,0.053299,97423.0,97422.0,6e-05]
[1733833468805,0.057299,97423.0,97422.0,6e-05]
[1733833472413,0.006,97423.0,97422.0,0.05136]
[1733833472812,0.005,97423.0,97422.0,0.05136]
[1733833473104,0.004,97423.0,97422.0,0.05136]
[1733833473508,0.002,97423.0,97422.0,0.05136]
[1733833473915,0.001,97423.0,97422.0,0.05136]
[1733833474813,0.052299,97423.0,97422.0,0.05136]
[1733833475220,0.001,97423.0,97422.0,0.05136]
[1733833477220,0.052299,97423.0,97422.0,0.05136]
[1733833484018,0.052299,97423.0,97422.0,6e-05]
[1733833486008,0.06271348,97423.0,97422.0,6e-05]
[1733833491623,0.10631348,97423.0,97422.0,6e-05]
[1733833491832,0.22886117,97423.0,97422.0,6e-05]
[1733833492820,0.22882321,97423.0,97422.0,6e-05]
[1733833493122,0.10631348,97423.0,97422.0,6e-05]
[1733833493827,0.06271348,97423.0,97422.0,6e-05]
[1733833494028,0.14419286,97423.0,97422.0,6e-05]
[1733833494222,0.052299,97423.0,97422.0,6e-05]
[1733833494623,0.1748476,97423.0,97422.0,6e-05]
[1733833494824,0.052299,97423.0,97422.0,6e-05]
[1733833495419,0.001,97423.0,97422.0,6e-05]
[1733833495618,0.001,97423.0,97422.0,0.05136]
[1733833497124,0.051299,97423.0,97422.0,0.05136]
[1733833498518,0.051299,97423.0,97422.0,6e-05]
[1733833499725,0.10119184,97423.0,97422.0,6e-05]
[1733833500327,0.06166737,97423.0,97422.0,6e-05]
[1733833500526,0.11156101,97423.0,97422.0,6e-05]
[1733833500924,0.11256101,97423.0,97422.0,6e-05]
[1733833501328,0.21586035,97423.0,97422.0,6e-05]
[1733833501523,0.06266737,97423.0,97422.0,6e-05]
[1733833506533,0.052299,97423.0,97422.0,6e-05]
[1733833506727,0.052299,97423.0,97422.0,0.09786]
[1733833506930,0.001,97423.0,97422.0,0.09786]
[1733833507633,0.052299,97423.0,97422.0,0.09786]
[1733833508134,0.052299,97423.0,97422.0,0.04656]
[1733833508330,0.052299,97423.0,97422.0,0.09786]
[1733833508549,0.001,97423.0,97422.0,0.09786]
[1733833510130,0.051297,97426.0,97422.0,0.04756]
[1733833510327,0.051297,97426.0,97425.0,0.051298]
[1733833510538,0.051297,97426.0,97425.0,0.051358]
[1733833511345,0.051294,97433.0,97432.0,0.051293]
[1733833511645,0.051294,97433.0,97432.0,0.051353]
[1733833512345,0.051294,97433.0,97432.0,0.095353]
[1733833513237,0.051294,97433.0,97432.0,0.04406]
[1733833513739,0.055294,97433.0,97432.0,0.04406]
[1733833513944,0.055294,97433.0,97432.0,6e-05]
[1733833514146,0.416094,97433.0,97432.0,6e-05]
[1733833514846,0.051299,97423.0,97422.0,6e-05]
[1733833515037,0.412099,97423.0,97422.0,6e-05]
[1733833515342,0.412219,97423.0,97422.0,6e-05]
[1733833516444,0.54491922,97423.0,97422.0,6e-05]
[1733833516836,0.54491922,97423.0,97422.0,0.00106]
[1733833517243,0.54491631,97423.0,97422.0,0.00106]
[1733833517538,0.54491631,97423.0,97422.0,0.00206]
[1733833518136,0.54491631,97423.0,97422.0,0.00106]
[1733833519044,0.42253358,97423.0,97422.0,0.00106]
[1733833519444,0.54489522,97423.0,97422.0,0.00106]
[1733833519643,0.54489522,97423.0,97422.0,6e-05]
[1733833520146,0.42253358,97423.0,97422.0,6e-05]
[1733833520347,0.42353358,97423.0,97422.0,6e-05]
[1733833521746,0.51529754,97423.0,97422.0,6e-05]
[1733833521942,0.42353358,97423.0,97422.0,6e-05]
[1733833522249,0.052419,97423.0,97422.0,6e-05]
[1733833522457,0.00112,97423.0,97422.0,6e-05]
[1733833522756,0.00112,97423.0,97422.0,0.05136]
[1733833523347,0.00112,97423.0,97422.0,6e-05]
[1733833524246,0.052419,97423.0,97422.0,6e-05]
[1733833524442,0.052419,97423.0,97422.0,0.00106]
[1733833524742,0.051419,97423.0,97422.0,0.00206]
[1733833525347,0.051419,97423.0,97422.0,0.00106]
[1733833525549,0.051419,97423.0,97422.0,0.001]
[1733833526149,0.051419,97423.0,97422.0,0.002]
[1733833526952,0.00012,97423.0,97422.0,0.0523]
[1733833527140,0.051419,97423.0,97422.0,0.001]
[1733833527340,0.051419,97423.0,97422.0,0.047]
[1733833527749,0.051419,97423.0,97422.0,0.046]
[1733833527950,0.051419,97423.0,97422.0,0.047]
[1733833528148,0.051419,97423.0,97422.0,0.001]
[1733833528343,0.412219,97423.0,97422.0,0.001]
[1733833528553,0.0513,97421.0,97420.0,0.29021478]
[1733833528749,0.0513,97421.0,97420.0,0.29023153]
[1733833528948,0.05142,97421.0,97420.0,0.29023153]
[1733833529345,0.05142,97421.0,97420.0,0.0446]
[1733833532257,0.00012,97421.0,97420.0,0.095901]
[1733833532962,0.00012,97421.0,97420.0,0.39261969]
[1733833533261,0.05142,97421.0,97420.0,0.39261969]
[1733833533852,0.05142,97421.0,97420.0,0.34131869]
[1733833534059,0.051301,97420.0,97419.0,0.30711071]
[1733833534252,0.051301,97420.0,97417.0,0.24570841]
[1733833534253,0.051302,97418.0,97417.0,0.24570841]
[1733833534455,0.051303,97416.0,97415.0,0.24570841]
[1733833534764,0.051303,97416.0,97412.0,0.046]
[1733833534765,0.051303,97415.0,97412.0,0.046]
[1733833534950,0.051303,97415.0,97414.0,0.051304]
[1733833535364,0.051303,97415.0,97412.0,0.35311071]
[1733833535660,0.051304,97414.0,97413.0,0.60347315]
[1733833536059,0.051304,97414.0,97412.0,0.35311071]
[1733833536260,0.051304,97413.0,97412.0,0.35311071]
[1733833536459,0.051304,97413.0,97412.0,0.64947818]
[1733833536658,0.051302,97418.0,97413.0,0.051304]
[1733833536856,0.051302,97418.0,97412.0,0.35311071]
[1733833537062,0.051302,97418.0,97417.0,6e-05]
[1733833538361,0.051302,97418.0,97417.0,0.00106]
[1733833538558,0.051302,97418.0,97417.0,0.00306]
[1733833539762,0.051302,97418.0,97417.0,0.054362]
[1733833539967,0.051302,97418.0,97417.0,0.36147271]
[1733833540364,0.051302,97418.0,97417.0,0.054362]
[1733833540665,0.051302,97418.0,97417.0,0.00306]
[1733833544059,0.052302,97418.0,97417.0,0.00206]
[1733833544259,0.052302,97418.0,97417.0,6e-05]
[1733833544464,0.14711533,97418.0,97417.0,6e-05]
[1733833544857,0.14411533,97418.0,97417.0,6e-05]
[1733833545057,0.14711533,97418.0,97417.0,6e-05]
[1733833545369,0.14611533,97418.0,97417.0,6e-05]
[1733833545567,0.14711533,97418.0,97417.0,6e-05]
[1733833546660,0.14911533,97418.0,97417.0,6e-05]
[1733833547365,0.15011533,97418.0,97417.0,6e-05]
[1733833548057,0.058302,97418.0,97417.0,6e-05]
[1733833549066,0.057302,97418.0,97417.0,6e-05]
[1733833549871,0.052302,97418.0,97417.0,6e-05]
[1733833550067,0.055302,97418.0,97417.0,6e-05]
[1733833550463,0.052302,97418.0,97417.0,6e-05]
[1733833550665,0.054302,97418.0,97417.0,6e-05]
[1733833550866,0.098702,97418.0,97417.0,6e-05]
[1733833551072,0.096702,97418.0,97417.0,6e-05]
[1733833551268,0.098702,97418.0,97417.0,6e-05]
[1733833552075,0.097702,97418.0,97417.0,6e-05]
[1733833552373,0.099702,97418.0,97417.0,6e-05]
[1733833552766,0.101702,97418.0,97417.0,6e-05]
[1733833553373,0.102702,97418.0,97417.0,0.00106]
[1733833555968,0.463502,97418.0,97417.0,0.00106]
[1733833556282,0.456502,97418.0,97403.0,0.24580524]
[1733833556468,0.456502,97418.0,97400.0,0.10008548]
[1733833556469,0.05131,97402.0,97400.0,0.10008548]
[1733833556977,0.044,97401.0,97400.0,0.10008548]
[1733833557479,0.09544315,97401.0,97400.0,0.07588649]
[1733833557676,0.13744315,97401.0,97400.0,0.07588649]
[1733833558283,0.14784412,97401.0,97400.0,0.07588649]
[1733833558479,0.051311,97400.0,97386.0,0.24580524]
[1733833558685,0.3608,97390.0,97386.0,0.24580524]
[1733833558887,0.00012,97387.0,97386.0,0.24580524]
[1733833559286,0.051438,97387.0,97386.0,0.24580524]
[1733833559482,0.051322,97379.0,97378.0,0.00121636]
[1733833559788,0.051442,97379.0,97378.0,0.00121636]
[1733833561982,0.051442,97379.0,97378.0,0.00521636]
[1733833562785,0.00012,97379.0,97378.0,0.00121636]
[1733833562986,0.00012,97379.0,97378.0,0.04814096]
[1733833563186,0.00112,97379.0,97378.0,0.05514096]
[1733833563488,0.00112,97379.0,97378.0,0.01021636]
[1733833563686,0.00112,97379.0,97378.0,0.05211636]
[1733833564888,0.00012,97379.0,97378.0,0.04811636]
[1733833565089,0.051442,97379.0,97378.0,0.04811636]
[1733833568186,0.051442,97379.0,97378.0,0.09943936]
[1733833568397,0.3608,97398.0,97378.0,0.04811636]
[1733833568705,0.051316,97390.0,97389.0,0.412117]
[1733833569691,0.051314,97395.0,97394.0,0.051313]
[1733833570093,0.051314,97395.0,97389.0,0.36132]
[1733833570094,0.051316,97390.0,97389.0,0.412117]
[1733833570303,0.053316,97390.0,97389.0,0.65792224]
[1733833570493,0.053436,97390.0,97389.0,0.65792224]
[1733833570994,0.053436,97390.0,97389.0,0.60660524]
[1733833571500,0.053436,97390.0,97388.0,0.24531733]
[1733833571693,0.051317,97389.0,97388.0,0.24531733]
[1733833571894,0.00212,97390.0,97387.0,0.18399268]
[1733833572094,0.051317,97388.0,97387.0,0.18399268]
[1733833572491,0.051319,97386.0,97385.0,0.18401405]
[1733833572696,0.051319,97386.0,97384.0,0.05132]
[1733833572906,0.051439,97386.0,97384.0,0.05132]
[1733833573202,0.051439,97385.0,97384.0,0.05132]
[1733833573891,0.051439,97385.0,97383.0,0.24531733]
[1733833573892,0.00012,97385.0,97383.0,0.24531733]
[1733833574096,0.051321,97382.0,97381.0,0.24531733]
[1733833574297,0.051321,97381.0,97380.0,0.24531733]
[1733833574601,0.051321,97381.0,97380.0,0.04491738]
[1733833574602,0.051441,97381.0,97380.0,0.04491738]
[1733833574901,0.051322,97380.0,97379.0,0.28921733]
[1733833575292,0.051442,97380.0,97379.0,0.28921733]
[1733833575789,0.051442,97380.0,97379.0,0.0439]
[1733833575992,0.00012,97380.0,97379.0,0.28921733]
[1733833576201,0.00012,97380.0,97379.0,0.095222]
[1733833576502,0.00012,97380.0,97379.0,0.14014103]
[1733833576707,0.051442,97380.0,97379.0,0.0459]
[1733833576907,0.021442,97380.0,97379.0,0.0459]
[1733833577106,0.021442,97380.0,97379.0,0.0439]
[1733833577401,0.021442,97380.0,97379.0,0.0459]
[1733833577600,0.021442,97380.0,97379.0,0.29136471]
[1733833578192,0.021442,97380.0,97379.0,0.003]
[1733833579006,0.062942,97380.0,97379.0,0.003]
[1733833579209,0.11775896,97380.0,97379.0,1e-06]
[1733833579400,0.11775896,97380.0,97358.0,0.34861071]
[1733833579401,0.051328,97368.0,97359.0,0.24548063]
[1733833579602,0.051335,97354.0,97351.0,0.24548063]
[1733833579898,0.051336,97354.0,97352.0,0.04493334]
[1733833580097,0.051336,97354.0,97345.0,0.0838]
[1733833580292,0.3608,97360.0,97349.0,0.3608]
[1733833580498,0.36148,97360.0,97351.0,0.051337]
[1733833580705,0.36148,97360.0,97352.0,0.04493499]
[1733833580906,0.3608,97360.0,97353.0,0.04493499]
[1733833581200,0.412126,97372.0,97357.0,0.3608]
[1733833581405,0.412126,97372.0,97359.0,0.055332]
[1733833581705,0.412126,97372.0,97371.0,6e-05]
[1733833583806,0.412126,97372.0,97371.0,0.00106]
[1733833584193,0.412126,97372.0,97371.0,0.00206]
[1733833584399,0.3608,97372.0,97371.0,0.00206]
[1733833588309,0.3608,97372.0,97371.0,0.00056]
[1733833589514,0.09157865,97378.0,97371.0,0.00056]
[1733833589909,0.051324,97377.0,97371.0,0.00056]
[1733833590211,0.36148,97381.0,97372.0,0.04492696]
[1733833590402,0.3608,97381.0,97372.0,0.04492696]
[1733833591103,0.3608,97381.0,97373.0,0.04492696]
[1733833591412,0.3608,97381.0,97374.0,0.04492696]
[1733833591611,0.3608,97381.0,97376.0,0.051324]
[1733833592004,0.00012,97382.0,97378.0,0.3608]
[1733833592213,0.00012,97382.0,97379.0,0.04492696]
[1733833592410,0.00012,97382.0,97381.0,6e-05]
[1733833595913,0.00112,97382.0,97381.0,0.04497917]
[1733833596409,0.00012,97382.0,97381.0,0.04497917]
[1733833596617,0.00112,97382.0,97381.0,0.04497917]
[1733833597011,0.00112,97382.0,97381.0,0.04597917]
[1733833597207,0.00012,97382.0,97381.0,0.04697917]
[1733833598225,0.12239798,97406.0,97381.0,0.96868483]
[1733833598226,0.051312,97398.0,97381.0,0.96868483]
[1733833598417,0.051312,97398.0,97396.0,0.3608]
[1733833598611,0.051312,97398.0,97397.0,0.04497917]
[1733833598807,0.0432,97418.0,97400.0,0.051311]
[1733833598808,0.13477865,97418.0,97400.0,0.051311]
[1733833599007,0.13477865,97418.0,97400.0,0.09623017]
[1733833599008,0.02015406,97416.0,97400.0,0.09623017]
[1733833599215,0.051307,97409.0,97400.0,0.09629017]
[1733833600110,0.00313215,97401.0,97400.0,0.09629017]
[1733833601617,0.01013215,97401.0,97400.0,0.09729017]
[1733833602119,0.06144315,97401.0,97400.0,0.04597917]
[1733833604414,0.42224315,97401.0,97400.0,0.00106]
[1733833604619,0.43264641,97401.0,97400.0,0.00106]
[1733833604923,0.051317,97389.0,97380.0,0.051321]
[1733833605109,0.3608,97387.0,97381.0,0.09624154]
[1733833605311,0.3608,97387.0,97382.0,0.04492054]
[1733833605519,0.3608,97387.0,97352.0,0.3608]
[1733833605714,0.3608,97376.0,97368.0,0.051328]
[1733833605914,0.412124,97376.0,97369.0,0.04492405]
[1733833606117,0.412124,97376.0,97368.0,0.051328]
[1733833606118,0.051324,97375.0,97370.0,0.04492405]
[1733833606418,0.051324,97375.0,97371.0,0.04492405]
[1733833606617,0.051325,97374.0,97372.0,0.04492405]
[1733833606818,0.051325,97374.0,97373.0,0.04492405]
[1733833607825,0.052325,97374.0,97373.0,0.04492405]
[1733833608125,0.052325,97374.0,97373.0,0.04792405]
[1733833608516,0.052325,97374.0,97373.0,0.003]
[1733833608815,0.051325,97374.0,97373.0,0.003]
[1733833609526,0.0449,97375.0,97363.0,0.051331]
[1733833609712,0.3608,97368.0,97363.0,0.051331]
[1733833609909,0.00012,97364.0,97363.0,0.051331]
[1733833610420,0.00012,97364.0,97354.0,0.051335]
[1733833610421,0.051332,97361.0,97354.0,0.051335]
[1733833610612,0.051332,97361.0,97350.0,7.301e-05]
[1733833610613,0.3608,97358.0,97350.0,7.301e-05]
[1733833610813,0.00012,97355.0,97354.0,0.412135]
[1733833611019,0.3608,97368.0,97362.0,0.051331]
[1733833611329,0.3608,97368.0,97367.0,0.051328]
[1733833612412,0.412128,97368.0,97367.0,0.051328]
[1733833612619,0.051329,97366.0,97362.0,0.051331]
[1733833612920,0.051329,97366.0,97359.0,0.0883]
[1733833612921,0.051329,97366.0,97364.0,0.05133]
[1733833613522,0.051329,97366.0,97359.0,0.0883]
[1733833613523,0.051329,97366.0,97365.0,0.05133]
[1733833614328,0.051332,97361.0,97359.0,0.0883]
[1733833614623,0.051332,97361.0,97359.0,0.094033]
[1733833614624,0.00012,97360.0,97359.0,0.094033]
[1733833615024,0.00012,97360.0,97354.0,0.3608]
[1733833615228,0.00012,97360.0,97355.0,0.04492765]
[1733833615424,0.3608,97360.0,97351.0,0.051337]
[1733833615621,0.051336,97352.0,97351.0,0.051337]
[1733833615827,0.051336,97352.0,97351.0,0.0962666]
[1733833617236,0.412136,97352.0,97351.0,0.0449296]
[1733833617928,0.413136,97352.0,97351.0,0.0559296]
[1733833618636,0.413136,97352.0,97351.0,0.011]
[1733833618929,0.052336,97352.0,97351.0,0.011]
[1733833621929,0.097636,97352.0,97351.0,0.011]
[1733833622928,0.052336,97352.0,97351.0,0.011]
[1733833623126,0.001,97352.0,97351.0,0.057337]
[1733833623323,0.001,97352.0,97351.0,0.062337]
[1733833623932,0.001,97352.0,97351.0,0.01]
[1733833624128,0.001,97352.0,97351.0,0.10627544]
[1733833628042,0.051327,97370.0,97369.0,0.051327]
[1733833628433,0.051327,97370.0,97369.0,0.051387]
[1733833628929,0.0439,97380.0,97369.0,0.051387]
[1733833629135,0.45251344,97393.0,97373.0,0.3608]
[1733833629327,0.051319,97385.0,97384.0,0.051319]
[1733833629547,0.0456,97396.0,97380.0,0.10096868]
[1733833629548,0.051317,97390.0,97389.0,0.051316]
[1733833629936,0.0456,97396.0,97389.0,0.3608]
[1733833630137,0.0110282,97399.0,97389.0,0.3608]
[1733833630329,0.051316,97391.0,97390.0,0.051316]
[1733833632141,0.3711482,97399.0,97389.0,0.3608]
[1733833632436,0.3711482,97399.0,97370.0,0.0449]
[1733833632437,0.051326,97371.0,97370.0,0.0449]
[1733833632643,0.051326,97371.0,97364.0,0.4624291]
[1733833632644,0.3608,97371.0,97364.0,0.3676991]
[1733833632846,0.051331,97362.0,97361.0,0.30641592]
[1733833633040,0.051331,97362.0,97360.0,0.051332]
[1733833633338,0.00012,97361.0,97360.0,0.051332]
[1733833633546,0.00012,97361.0,97360.0,0.09626252]
[1733833634043,0.00012,97361.0,97360.0,0.40267844]
[1733833634438,0.00012,97361.0,97360.0,0.66526905]
[1733833634639,0.00012,97361.0,97360.0,0.35885313]
[1733833635636,0.00112,97361.0,97360.0,0.36385313]
[1733833635836,0.00112,97361.0,97360.0,0.36685313]
[1733833636135,0.00112,97361.0,97360.0,0.67364326]
[1733833636334,0.00112,97361.0,97360.0,0.36685313]
[1733833636534,0.00112,97361.0,97360.0,0.10426252]
[1733833637139,0.052452,97361.0,97360.0,0.10426252]
[1733833638029,0.052452,97361.0,97360.0,0.05293052]
[1733833640942,0.052452,97361.0,97360.0,0.05293385]
[1733833641241,0.051337,97351.0,97350.0,7.301e-05]
[1733833641440,0.051337,97351.0,97350.0,0.04500849]
[1733833641634,0.051457,97351.0,97350.0,0.04500849]
[1733833642441,0.051457,97351.0,97350.0,0.05000849]
[1733833643037,0.051457,97351.0,97350.0,0.00507301]
[1733833643244,0.095157,97351.0,97350.0,0.01107301]
[1733833644944,0.1054994,97351.0,97350.0,0.01107301]
[1733833645542,0.00112,97351.0,97350.0,0.01107301]
[1733833647037,0.413257,97351.0,97350.0,0.01107301]
[1733833650243,0.36192,97351.0,97350.0,0.01107301]
[1733833650550,0.36192,97351.0,97350.0,0.10734772]
[1733833650735,0.413257,97351.0,97350.0,0.01107301]
[1733833651138,0.413257,97351.0,97325.0,0.27560582]
[1733833651139,0.051346,97333.0,97325.0,0.27560582]
[1733833651337,0.051361,97305.0,97304.0,0.42950228]
[1733833651543,0.772961,97305.0,97304.0,0.47393332]
[1733833651749,0.772961,97305.0,97298.0,0.49078547]
[1733833651750,0.051362,97303.0,97298.0,0.49078547]
[1733833652066,0.051482,97303.0,97298.0,0.49078547]
[1733833652251,0.051363,97301.0,97298.0,0.00052]
[1733833652550,0.72236,97305.0,97293.0,0.0448]
[1733833652551,0.65388,97305.0,97293.0,0.0448]
[1733833652734,0.3608,97320.0,97318.0,0.051354]
[1733833652939,0.3608,97320.0,97319.0,0.0434]
[1733833653146,0.10096868,97330.0,97312.0,0.3608]
[1733833653346,0.051356,97314.0,97313.0,0.0434]
[1733833653746,0.3608,97317.0,97313.0,0.0434]
[1733833654142,0.412155,97317.0,97316.0,6e-05]
[1733833655342,0.416155,97317.0,97316.0,6e-05]
[1733833656850,0.418155,97317.0,97316.0,6e-05]
[1733833657148,0.051361,97305.0,97304.0,0.0442]
[1733833657355,0.412161,97305.0,97304.0,0.0442]
[1733833661341,0.413161,97305.0,97304.0,0.0442]
[1733833664364,0.412161,97305.0,97304.0,0.0442]
[1733833666659,0.3608,97305.0,97304.0,0.0442]
[1733833666863,0.3608,97305.0,97300.0,0.1]
[1733833667048,0.3608,97305.0,97262.0,0.3608]
[1733833667049,0.3608,97301.0,97284.0,0.0861]
[1733833667359,0.412172,97285.0,97284.0,0.0861]
[1733833667949,0.3608,97285.0,97284.0,0.137472]
[1733833669456,0.412172,97285.0,97284.0,0.137472]
[1733833669851,0.3608,97285.0,97284.0,0.137472]
[1733833670057,0.412284,97301.0,97284.0,0.3861]
[1733833670058,0.00012,97301.0,97284.0,0.3861]
[1733833670366,0.051363,97302.0,97301.0,0.051362]
[1733833670561,0.3608,97309.0,97300.0,6e-05]
[1733833670761,0.051361,97305.0,97304.0,0.051361]
[1733833672261,0.10096868,97310.0,97309.0,0.051359]
[1733833672462,0.051359,97311.0,97310.0,0.051359]
[1733833672863,0.051355,97317.0,97306.0,0.05136]
[1733833673056,0.0429,97318.0,97306.0,0.05136]
[1733833673250,0.051355,97317.0,97316.0,6e-05]
[1733833674572,0.052355,97317.0,97316.0,6e-05]
[1733833674762,0.17463959,97317.0,97316.0,6e-05]
[1733833675058,0.052355,97317.0,97316.0,6e-05]
[1733833675665,0.055355,97317.0,97316.0,6e-05]
[1733833676258,0.17963959,97317.0,97316.0,6e-05]
[1733833676661,0.056355,97317.0,97316.0,0.051415]
[1733833676851,0.1795047,97317.0,97316.0,0.051415]
[1733833677062,0.006,97317.0,97316.0,0.051415]
[1733833677559,0.007,97317.0,97316.0,0.051415]
[1733833678259,0.058355,97317.0,97316.0,0.051415]
[1733833679366,0.052355,97317.0,97316.0,0.051415]
[1733833679554,0.055355,97317.0,97316.0,0.051415]
[1733833679959,0.052355,97317.0,97316.0,0.051415]
[1733833680161,0.17669615,97317.0,97316.0,0.051415]
[1733833680659,0.054355,97317.0,97316.0,0.051415]
[1733833680965,0.003,97317.0,97316.0,0.051415]